bitfinex/quotes_SOLUSD_20240607
["timestamp","ask_amount","ask_price","bid_price","bid_amount"]
[1717774836850,2.1797,169.75,169.72,6.066]
[1717774842854,8.24552456,169.76,169.72,6.066]
[1717774843065,8.24552456,169.76,169.72,12.216]
[1717774843066,2.1796,169.75,169.72,12.216]
[1717774844158,8.24552456,169.76,169.73,6.15]
[1717774844339,2.1796,169.76,169.73,6.15]
[1717774844534,2.1794,169.77,169.73,12.7402]
[1717774844747,8.24528903,169.77,169.73,12.7402]
[1717774845057,2.1795,169.76,169.73,12.7402]
[1717774845560,8.24528903,169.77,169.73,12.7402]
[1717774845752,2.1795,169.76,169.73,6.15]
[1717774847048,6.06588903,169.77,169.75,6.15]
[1717774847360,2.1794,169.78,169.75,6.15]
[1717774847757,2.1792,169.79,169.75,6.15]
[1717774848858,2.1793,169.78,169.74,6.15]
[1717774849440,2.1793,169.78,169.74,12.258]
[1717774850140,16.57486972,169.8,169.74,12.258]
[1717774850141,2.1792,169.79,169.74,12.258]
[1717774850549,2.1793,169.78,169.74,12.258]
[1717774851653,2.1791,169.79,169.74,12.258]
[1717774852572,2.1791,169.79,169.68,15.9548]
[1717774852573,2.1793,169.78,169.69,6.1199]
[1717774852753,2.1794,169.77,169.73,6.15]
[1717774852942,2.1793,169.78,169.73,6.15]
[1717774853370,2.1794,169.77,169.73,6.15]
[1717774853665,2.1793,169.78,169.73,6.15]
[1717774854070,2.1794,169.77,169.73,6.15]
[1717774854250,2.1794,169.77,169.7,20.0]
[1717774854569,2.1794,169.77,169.72,6.15]
[1717774854775,2.1794,169.77,169.73,6.15]
[1717774855066,6.15,169.78,169.73,6.15]
[1717774855067,2.1793,169.78,169.73,6.15]
[1717774855549,2.1794,169.77,169.73,6.15]
[1717774855749,2.1793,169.78,169.73,6.15]
[1717774857368,6.15,169.79,169.73,6.15]
[1717774857668,8.3292,169.79,169.73,6.15]
[1717774857848,6.07315292,169.78,169.73,6.15]
[1717774860260,6.07315292,169.78,169.71,0.08898991]
[1717774860771,8.25245292,169.78,169.73,6.15]
[1717774861580,2.1794,169.77,169.73,6.15]
[1717774861759,8.25245292,169.78,169.71,0.08898991]
[1717774861963,2.1796,169.76,169.71,0.08898991]
[1717774862201,6.07315292,169.78,169.71,0.08898991]
[1717774862474,2.18,169.72,169.71,0.08898991]
[1717774862672,14.63659235,169.72,169.71,0.08898991]
[1717774865174,8.48659235,169.72,169.71,0.08898991]
[1717774865399,6.30659235,169.72,169.71,0.08898991]
[1717774865553,2.18,169.72,169.71,0.08898991]
[1717774866369,19.09527568,169.72,169.71,0.08898991]
[1717774866568,25.41067568,169.72,169.71,0.08898991]
[1717774866776,32.59798222,169.72,169.71,0.08898991]
[1717774867386,15.77248222,169.72,169.71,0.08898991]
[1717774867591,21.92248222,169.72,169.71,0.08898991]
[1717774868180,27.99377609,169.72,169.71,0.08898991]
[1717774869880,21.84377609,169.72,169.71,0.08898991]
[1717774870062,21.58860041,169.72,169.71,0.08898991]
[1717774872766,13.25860041,169.72,169.71,0.08898991]
[1717774872974,6.07129387,169.72,169.71,0.08898991]
[1717774874000,2.1798,169.74,169.71,0.08898991]
[1717774874187,14.39865664,169.75,169.71,0.08898991]
[1717774874684,8.24865664,169.75,169.71,0.08898991]
[1717774874907,12.21895664,169.75,169.71,0.08898991]
[1717774875090,6.06895664,169.75,169.71,6.61078991]
[1717774875385,6.06895664,169.75,169.71,12.76078991]
[1717774875597,8.3294,169.77,169.71,12.76078991]
[1717774875883,8.24800281,169.77,169.71,12.76078991]
[1717774876093,14.39800281,169.77,169.71,12.76078991]
[1717774876299,14.39800281,169.77,169.72,6.15]
[1717774876484,14.39800281,169.77,169.72,12.6718]
[1717774877492,6.06860281,169.77,169.72,12.6718]
[1717774877682,12.21860281,169.77,169.73,6.5225]
[1717774878084,6.06860281,169.77,169.73,6.5225]
[1717774878283,13.072,169.83,169.75,6.15]
[1717774878592,6.15,169.79,169.71,6.61138991]
[1717774878793,6.15,169.79,169.73,6.15]
[1717774878967,2.1793,169.78,169.73,6.15]
[1717774879171,2.1794,169.77,169.71,12.76138991]
[1717774879370,6.15,169.76,169.71,6.61138991]
[1717774879674,6.15,169.77,169.71,12.76138991]
[1717774880396,8.24777205,169.79,169.74,6.15]
[1717774880594,8.24777205,169.79,169.74,12.3322]
[1717774883285,6.06857205,169.79,169.74,6.15]
[1717774883487,2.1794,169.77,169.71,0.08898991]
[1717774883670,6.06857205,169.79,169.71,0.08898991]
[1717774883671,8.3295,169.76,169.71,0.08898991]
[1717774883875,8.3296,169.75,169.71,0.08898991]
[1717774884397,2.1798,169.74,169.71,0.08898991]
[1717774887401,2.1799,169.73,169.71,0.08898991]
[1717774887700,2.1798,169.74,169.71,0.08898991]
[1717774888101,8.3298,169.74,169.71,0.08898991]
[1717774888400,6.15,169.74,169.71,0.08898991]
[1717774888582,2.1798,169.74,169.71,0.08898991]
[1717774890609,2.1799,169.73,169.71,0.08898991]
[1717774890904,2.1798,169.74,169.71,0.08898991]
[1717774891882,2.1797,169.75,169.71,0.08898991]
[1717774892383,25.7644,169.78,169.72,6.15]
[1717774892589,2.1797,169.75,169.71,6.23898991]
[1717774893523,2.1796,169.75,169.71,6.23898991]
[1717774893690,2.1798,169.74,169.71,6.23898991]
[1717774895082,2.1798,169.74,169.71,0.08898991]
[1717774895495,2.1797,169.75,169.71,0.08898991]
[1717774895699,2.1797,169.75,169.71,6.23898991]
[1717774896512,2.1799,169.73,169.71,6.23898991]
[1717774896803,2.1799,169.73,169.71,0.08898991]
[1717774896989,2.1798,169.74,169.71,0.08898991]
[1717774897403,2.1797,169.75,169.71,0.08898991]
[1717774897600,2.1797,169.75,169.71,6.23898991]
[1717774897807,2.1797,169.75,169.72,6.15]
[1717774898000,2.1795,169.76,169.72,6.15]
[1717774898797,2.1796,169.75,169.71,0.08898991]
[1717774899110,2.1796,169.75,169.71,6.23898991]
[1717774899307,2.1796,169.75,169.71,0.08898991]
[1717774899812,2.1796,169.75,169.71,6.23898991]
[1717774900021,16.57826481,169.77,169.71,0.08898991]
[1717774900184,2.1797,169.75,169.71,0.08898991]
[1717774900506,8.3296,169.76,169.71,0.08898991]
[1717774900709,2.1796,169.76,169.72,12.3854]
[1717774900917,8.24876481,169.77,169.72,12.3854]
[1717774902922,2.1795,169.76,169.72,12.3854]
[1717774903421,2.1795,169.76,169.73,6.15]
[1717774904098,2.1795,169.76,169.72,12.3854]
[1717774905328,2.1796,169.75,169.72,6.2354]
[1717774905701,2.1798,169.74,169.71,6.23898991]
[1717774906093,2.1798,169.74,169.71,0.08898991]
[1717774906692,2.1797,169.75,169.71,0.08898991]
[1717774911207,6.15,169.75,169.71,0.08898991]
[1717774911411,2.18,169.72,169.71,0.08898991]
[1717774911619,8.33,169.72,169.71,0.08898991]
[1717774915321,2.18,169.72,169.71,0.08898991]
[1717774915524,27.9504,169.72,169.71,0.08898991]
[1717774915926,34.39712039,169.72,169.71,0.08898991]
[1717774916536,27.85702039,169.72,169.71,0.08898991]
[1717774916725,34.39712039,169.72,169.71,0.08898991]
[1717774916906,27.85702039,169.72,169.71,0.08898991]
[1717774917839,19.13682039,169.72,169.71,0.08898991]
[1717774918027,14.77672039,169.72,169.71,0.08898991]
[1717774920316,8.33,169.72,169.71,0.08898991]
[1717774921228,2.18,169.72,169.71,0.08898991]
[1717774921429,8.33,169.72,169.71,0.08898991]
[1717774921926,14.39930135,169.72,169.71,0.08898991]
[1717774922326,18.75940135,169.72,169.71,0.08898991]
[1717774922532,26.25253506,169.72,169.71,0.08898991]
[1717774923932,32.69925545,169.72,169.71,0.08898991]
[1717774928639,47.95955545,169.72,169.71,0.08898991]
[1717774929321,32.69925545,169.72,169.71,0.08898991]
[1717774930041,39.23935545,169.72,169.71,0.08898991]
[1717774930425,47.95955545,169.72,169.71,0.08898991]
[1717774931636,54.59015545,169.72,169.71,0.08898991]
[1717774937230,47.95955545,169.72,169.71,0.08898991]
[1717774946655,65.64955545,169.72,169.71,0.08898991]
[1717774948636,65.64955545,169.72,169.71,8.991e-05]
[1717774953438,58.15642174,169.72,169.71,8.991e-05]
[1717774955154,2.1812,169.63,169.62,6.1296]
[1717774956062,8.32753468,169.63,169.62,6.1296]
[1717774959241,6.14633468,169.63,169.62,6.1296]
[1717774959441,6.14633468,169.63,169.62,22.2072]
[1717774959636,6.15,169.66,169.63,6.1916]
[1717774959956,2.1809,169.65,169.63,6.2639]
[1717774960551,2.1809,169.65,169.62,16.4155]
[1717774960858,2.1809,169.65,169.62,15.5078]
[1717774961263,8.32661473,169.66,169.62,15.5078]
[1717774961453,2.1809,169.65,169.62,15.5078]
[1717774961759,2.1809,169.65,169.64,6.4366]
[1717774964447,2.1809,169.65,169.6,6.6463]
[1717774964766,2.1811,169.64,169.6,6.515]
[1717774964967,2.1811,169.64,169.62,6.515]
[1717774965758,2.1811,169.64,169.6,16.4875]
[1717774965947,2.1811,169.64,169.61,6.0453]
[1717774966147,2.1811,169.64,169.6,16.4875]
[1717774966666,8.331,169.65,169.61,6.3048]
[1717774966848,2.1811,169.64,169.61,6.3048]
[1717774967049,6.15,169.65,169.61,6.3048]
[1717774967372,8.331,169.65,169.61,6.2724]
[1717774967760,8.331,169.65,169.61,6.4504]
[1717774968272,8.331,169.65,169.62,6.4504]
[1717774970373,2.181,169.65,169.62,6.4504]
[1717774972675,14.47661473,169.66,169.62,6.4504]
[1717774972870,2.1809,169.65,169.62,6.4504]
[1717774973065,2.1809,169.65,169.63,6.0984]
[1717774973584,6.13575307,169.65,169.63,6.0984]
[1717774975280,8.31665307,169.65,169.63,6.0984]
[1717774975778,6.13575307,169.65,169.63,6.0984]
[1717774975979,12.28575307,169.65,169.63,6.0984]
[1717774977074,14.46665307,169.65,169.63,6.0984]
[1717774977272,6.13575307,169.65,169.63,6.0984]
[1717774978961,14.46665307,169.65,169.61,6.5665]
[1717774979959,8.31665307,169.65,169.61,6.4756]
[1717774980160,6.13575307,169.65,169.59,6.4756]
[1717774980373,2.1812,169.63,169.59,6.4756]
[1717774980577,6.15,169.63,169.59,6.4756]
[1717774980762,2.1812,169.63,169.59,6.4756]
[1717774981161,21.40285307,169.65,169.58,0.2896594]
[1717774981367,2.1814,169.62,169.58,6.9197594]
[1717774987689,8.3314,169.62,169.58,6.9197594]
[1717774988388,2.1814,169.62,169.58,6.9197594]
[1717774988688,6.15,169.62,169.58,0.2896594]
[1717774988881,2.1815,169.61,169.58,0.2896594]
[1717774989267,2.1813,169.62,169.58,0.2896594]
[1717774989469,8.32262553,169.63,169.58,6.4396594]
[1717774990172,8.32262553,169.63,169.58,12.5990594]
[1717774990389,8.32262553,169.63,169.58,6.4396594]
[1717774990577,2.1813,169.62,169.58,6.4396594]
[1717774992585,2.1813,169.62,169.58,0.2896594]
[1717774992797,2.1813,169.62,169.59,6.15]
[1717774992973,8.32262553,169.63,169.59,6.15]
[1717774993691,2.1813,169.62,169.59,6.15]
[1717774993986,8.32262553,169.63,169.59,6.15]
[1717774994189,2.1813,169.62,169.59,6.15]
[1717774994389,8.32262553,169.63,169.59,6.15]
[1717774995169,2.1813,169.62,169.59,6.15]
[1717774995688,8.32262553,169.63,169.59,6.15]
[1717774996184,8.32262553,169.63,169.6,6.15]
[1717774998199,2.1813,169.62,169.6,6.15]
[1717775000177,2.1813,169.62,169.59,6.15]
[1717775000588,2.1813,169.62,169.58,0.2896594]
[1717775000899,2.1813,169.62,169.59,6.15]
[1717775004504,2.1813,169.62,169.58,0.2896594]
[1717775004695,2.1813,169.62,169.59,6.15]
[1717775005907,2.1813,169.62,169.58,0.2896594]
[1717775006394,2.1813,169.62,169.59,6.15]
[1717775006596,2.1813,169.62,169.58,0.2896594]
[1717775007303,2.1813,169.62,169.59,6.15]
[1717775007590,2.1815,169.61,169.58,0.2896594]
[1717775007791,2.1816,169.61,169.58,0.2896594]
[1717775007987,6.14144863,169.61,169.58,0.2896594]
[1717775008191,2.1817,169.59,169.58,0.2896594]
[1717775008793,2.1816,169.6,169.58,0.2896594]
[1717775009205,6.14144863,169.61,169.58,0.2896594]
[1717775009405,2.1817,169.6,169.58,0.2896594]
[1717775010311,8.32294863,169.61,169.58,0.2896594]
[1717775011213,2.1816,169.6,169.58,0.2896594]
[1717775011912,6.14144863,169.61,169.58,0.2896594]
[1717775012110,2.1816,169.6,169.58,0.2896594]
[1717775013095,8.32294863,169.61,169.58,0.2896594]
[1717775013509,2.1816,169.6,169.58,0.2896594]
[1717775013705,8.32294863,169.61,169.58,0.2896594]
[1717775014422,7.32294863,169.61,169.58,0.2896594]
[1717775015517,7.32284863,169.61,169.58,0.2896594]
[1717775015716,7.32284863,169.61,169.58,6.4396594]
[1717775016127,2.1816,169.6,169.58,0.2896594]
[1717775016823,2.1817,169.59,169.58,0.2896594]
[1717775018824,2.1816,169.6,169.58,6.4396594]
[1717775019024,2.1816,169.6,169.59,6.15]
[1717775019408,2.1816,169.6,169.58,0.2896594]
[1717775019709,2.1816,169.6,169.59,6.15]
[1717775020340,2.1815,169.61,169.59,6.15]
[1717775020622,2.1816,169.6,169.58,6.4396594]
[1717775021226,2.1817,169.59,169.58,6.4396594]
[1717775021425,2.1817,169.59,169.58,0.2896594]
[1717775021615,2.1816,169.6,169.58,6.4396594]
[1717775022330,2.1816,169.6,169.58,0.2896594]
[1717775022538,2.1816,169.6,169.58,6.4396594]
[1717775024252,2.1816,169.6,169.59,6.15]
[1717775025336,2.1814,169.62,169.59,6.15]
[1717775025518,2.1814,169.61,169.58,0.2896594]
[1717775025718,2.1814,169.61,169.6,6.15]
[1717775026340,2.1816,169.6,169.58,0.2896594]
[1717775026643,2.1816,169.6,169.59,6.15]
[1717775027233,2.1814,169.61,169.59,6.15]
[1717775027439,2.1814,169.62,169.6,6.15]
[1717775027655,2.1814,169.62,169.61,6.15]
[1717775027813,2.1816,169.6,169.58,0.2896594]
[1717775028238,2.1815,169.61,169.58,0.2896594]
[1717775028617,2.1816,169.6,169.58,0.2896594]
[1717775029954,2.1815,169.61,169.58,0.2896594]
[1717775030333,2.1816,169.6,169.58,0.2896594]
[1717775030640,2.1817,169.59,169.58,6.4396594]
[1717775032728,2.1816,169.6,169.58,6.4396594]
[1717775033051,2.1817,169.59,169.58,6.4396594]
[1717775033430,2.1816,169.6,169.58,0.2896594]
[1717775033635,2.1817,169.59,169.58,0.2896594]
[1717775033831,2.1817,169.59,169.58,6.4396594]
[1717775034948,4.363,169.61,169.58,6.4396594]
[1717775035150,2.1817,169.59,169.58,6.4396594]
[1717775035451,2.1817,169.59,169.58,0.2896594]
[1717775037029,2.1817,169.59,169.58,6.4396594]
[1717775037842,2.1817,169.59,169.58,0.2896594]
[1717775038531,2.1817,169.59,169.58,6.4396594]
[1717775041027,2.1817,169.59,169.58,0.2896594]
[1717775041244,2.1817,169.59,169.58,6.4396594]
[1717775042538,10.9074,169.61,169.58,6.4396594]
[1717775042539,4.3632,169.6,169.58,6.4396594]
[1717775042742,4.3632,169.6,169.58,0.2896594]
[1717775042945,2.1817,169.59,169.58,6.4396594]
[1717775045056,2.1817,169.59,169.58,0.2896594]
[1717775045359,2.1817,169.59,169.58,6.4396594]
[1717775046438,2.1817,169.59,169.58,0.2896594]
[1717775046758,2.1817,169.59,169.58,6.4396594]
[1717775047053,2.1817,169.59,169.58,0.2896594]
[1717775047558,2.1817,169.59,169.58,6.4396594]
[1717775047772,6.5451,169.59,169.58,0.2896594]
[1717775049660,2.1817,169.59,169.58,0.2896594]
[1717775050432,4.362,169.65,169.58,12.7530594]
[1717775050632,4.362,169.65,169.59,6.3134]
[1717775050851,2.181,169.64,169.58,6.6030594]
[1717775051049,2.181,169.64,169.63,6.15]
[1717775051246,2.181,169.65,169.63,6.15]
[1717775051459,2.181,169.64,169.63,6.15]
[1717775051755,2.181,169.65,169.63,6.15]
[1717775052336,6.5925,169.7,169.64,6.15]
[1717775052337,10.9019,169.7,169.64,6.15]
[1717775052547,2.1807,169.67,169.66,6.15]
[1717775052746,10.9019,169.7,169.66,6.15]
[1717775052954,2.1807,169.67,169.66,6.15]
[1717775053354,4.3607,169.7,169.66,6.15]
[1717775053865,2.1806,169.68,169.66,6.15]
[1717775054158,2.1807,169.67,169.66,6.15]
[1717775055045,2.1808,169.66,169.58,6.6030594]
[1717775055247,2.1808,169.66,169.64,6.15]
[1717775055760,2.1808,169.66,169.58,6.6030594]
[1717775056061,2.1808,169.66,169.64,6.15]
[1717775056775,2.1809,169.65,169.64,6.15]
[1717775057062,21.6266,169.69,169.58,0.2896594]
[1717775057260,4.3619,169.65,169.6,6.15]
[1717775057567,2.1813,169.62,169.6,6.15]
[1717775059265,2.1812,169.63,169.6,6.15]
[1717775059467,2.1812,169.63,169.61,6.15]
[1717775060382,2.1811,169.64,169.62,6.15]
[1717775060564,2.1812,169.63,169.62,6.15]
[1717775060759,2.1811,169.64,169.62,6.15]
[1717775061581,8.7227,169.68,169.58,0.2896594]
[1717775061779,6.5413,169.7,169.65,6.15]
[1717775061965,2.1809,169.66,169.65,6.15]
[1717775062368,4.3607,169.7,169.65,6.15]
[1717775062576,4.3607,169.7,169.66,6.15]
[1717775062782,2.1807,169.67,169.65,6.15]
[1717775063076,2.1805,169.69,169.66,6.15]
[1717775063385,2.1805,169.69,169.6,6.4988]
[1717775063386,2.1804,169.7,169.68,6.15]
[1717775064001,2.1804,169.7,169.69,6.15]
[1717775064272,4.3594,169.75,169.69,6.15]
[1717775064485,2.1801,169.72,169.65,6.15]
[1717775064689,2.1801,169.72,169.71,6.15]
[1717775065086,2.1802,169.71,169.65,6.15]
[1717775065287,2.1802,169.71,169.7,6.15]
[1717775065464,2.1802,169.71,169.65,24.6]
[1717775066087,2.18,169.72,169.65,24.6]
[1717775066278,2.1799,169.73,169.65,24.6]
[1717775066666,2.1801,169.72,169.65,24.6]
[1717775067882,2.1803,169.7,169.66,6.0745]
[1717775068066,2.1803,169.7,169.68,6.15]
[1717775068269,6.15,169.74,169.66,6.0745]
[1717775068486,2.1803,169.7,169.68,6.15]
[1717775068678,2.1803,169.7,169.69,6.15]
[1717775069068,2.1803,169.7,169.66,6.0745]
[1717775069302,2.1803,169.7,169.68,6.15]
[1717775070288,2.1802,169.71,169.68,6.15]
[1717775070486,2.1802,169.71,169.69,6.15]
[1717775070988,2.1801,169.72,169.69,6.15]
[1717775071767,2.1802,169.71,169.66,6.0745]
[1717775071990,2.1801,169.72,169.7,6.15]
[1717775072189,2.1801,169.71,169.7,6.15]
[1717775073594,2.18,169.72,169.7,6.15]
[1717775074890,2.1799,169.73,169.7,6.15]
[1717775075095,2.1801,169.72,169.66,6.0745]
[1717775075395,2.1801,169.72,169.71,6.15]
[1717775076994,2.1801,169.71,169.66,6.0745]
[1717775077195,2.1803,169.7,169.65,24.6]
[1717775077392,2.1802,169.71,169.66,6.0292]
[1717775077700,2.1802,169.71,169.65,30.7323]
[1717775079021,2.1801,169.72,169.65,30.7323]
[1717775079521,6.15,169.76,169.65,30.7323]
[1717775079731,4.3591,169.76,169.74,6.15]
[1717775080005,2.1799,169.74,169.72,6.15]
[1717775080174,2.1799,169.74,169.71,6.15]
[1717775085298,4.3591,169.76,169.65,30.7323]
[1717775085484,2.18,169.73,169.65,6.1323]
[1717775085683,2.18,169.73,169.69,6.15]
[1717775085878,2.18,169.73,169.7,6.15]
[1717775086198,2.18,169.73,169.71,6.15]
[1717775086573,2.1798,169.74,169.65,30.7323]
[1717775086780,2.1799,169.73,169.7,6.15]
[1717775087706,2.1798,169.74,169.7,6.15]
[1717775088404,2.1798,169.74,169.65,6.1323]
[1717775088605,25.766,169.76,169.7,6.15]
[1717775088606,2.1799,169.73,169.7,6.15]
[1717775089704,2.1798,169.74,169.7,6.15]
[1717775089891,2.1798,169.74,169.71,6.15]
[1717775091406,19.616,169.76,169.71,6.15]
[1717775091407,2.1799,169.73,169.71,6.15]
[1717775093909,2.1799,169.73,169.7,6.15]
[1717775095685,2.1798,169.74,169.7,6.15]
[1717775095887,2.1799,169.73,169.7,6.15]
[1717775099312,2.1799,169.73,169.71,6.15]
[1717775099812,2.1799,169.73,169.7,6.15]
[1717775100310,2.18,169.72,169.65,6.1323]
[1717775100811,2.1802,169.71,169.65,6.1323]
[1717775101009,2.1803,169.7,169.66,6.15]
[1717775101199,2.1803,169.7,169.65,6.1323]
[1717775101401,2.1802,169.71,169.67,6.15]
[1717775101914,2.1803,169.7,169.65,6.1323]
[1717775102206,2.1807,169.67,169.62,0.10448348]
[1717775102521,2.1809,169.65,169.62,6.25448348]
[1717775103016,2.1808,169.66,169.62,6.25448348]
[1717775103218,8.7228,169.67,169.62,0.10448348]
[1717775103511,6.15,169.65,169.62,0.10448348]
[1717775103721,2.181,169.64,169.62,0.10448348]
[1717775103889,2.1812,169.63,169.62,0.10448348]
[1717775106001,8.3312,169.63,169.62,0.10448348]
[1717775106329,49.716,169.63,169.62,0.10448348]
[1717775106895,56.86088164,169.63,169.62,0.10448348]
[1717775107103,64.14707128,169.63,169.62,0.10448348]
[1717775108192,57.99707128,169.63,169.62,0.10448348]
[1717775108435,83.19938301,169.63,169.62,0.10448348]
[1717775108896,65.50938301,169.63,169.62,0.10448348]
[1717775109398,85.50938301,169.63,169.62,0.10448348]
[1717775111417,103.19938301,169.63,169.62,0.10448348]
[1717775111610,103.19938301,169.63,169.62,8.348e-05]
[1717775112216,103.19938301,169.63,169.58,0.2896594]
[1717775112217,39.5071,169.59,169.58,0.2896594]
[1717775112516,56.54098164,169.59,169.58,0.2896594]
[1717775115425,28.96198164,169.59,169.58,0.2896594]
[1717775115626,35.11198164,169.59,169.58,0.2896594]
[1717775116429,28.96198164,169.59,169.58,0.2896594]
[1717775116630,35.11198164,169.59,169.58,0.2896594]
[1717775116831,13.68998164,169.59,169.58,0.2896594]
[1717775117029,2.1817,169.59,169.58,0.2896594]
[1717775117521,12.6951,169.59,169.58,0.2896594]
[1717775118002,6.5451,169.59,169.58,0.2896594]
[1717775118203,2.1817,169.59,169.58,0.2896594]
[1717775120426,19.6313,169.63,169.59,6.4452]
[1717775120609,2.1814,169.62,169.59,6.4452]
[1717775120808,2.1814,169.62,169.59,12.5952]
[1717775121319,2.1814,169.61,169.59,6.4452]
[1717775121524,2.1816,169.6,169.59,6.4452]
[1717775122035,10.5125,169.63,169.59,6.4452]
[1717775122829,10.5125,169.63,169.58,0.2896594]
[1717775123005,2.1816,169.6,169.58,0.2896594]
[1717775124439,17.0568,169.62,169.58,0.2896594]
[1717775124734,2.1817,169.59,169.58,0.2896594]
[1717775125216,8.3317,169.59,169.58,0.2896594]
[1717775126905,2.1817,169.59,169.58,0.2896594]
[1717775128736,12.95409386,169.65,169.58,0.2896594]
[1717775129051,2.1813,169.62,169.6,6.15]
[1717775129227,2.1813,169.62,169.59,12.7698]
[1717775129405,6.5436,169.64,169.59,12.7698]
[1717775129611,4.3625,169.63,169.59,6.6198]
[1717775129830,2.1815,169.61,169.59,6.6198]
[1717775130539,2.1813,169.62,169.59,6.6198]
[1717775130915,2.1813,169.62,169.59,12.7698]
[1717775131231,2.1812,169.63,169.6,12.2249]
[1717775131438,2.1813,169.62,169.6,12.2249]
[1717775131734,2.1814,169.61,169.6,6.0749]
[1717775132630,2.1814,169.61,169.59,6.15]
[1717775133033,2.1814,169.61,169.58,6.4396594]
[1717775133415,2.1814,169.61,169.58,0.2896594]
[1717775133935,2.1816,169.6,169.58,0.2896594]
[1717775134930,2.1815,169.61,169.58,0.2896594]
[1717775136126,2.1814,169.62,169.58,0.2896594]
[1717775136517,2.1814,169.61,169.58,0.2896594]
[1717775138132,2.1814,169.62,169.58,0.2896594]
[1717775138833,10.5126,169.63,169.58,0.2896594]
[1717775138834,2.1814,169.61,169.58,0.2896594]
[1717775139337,10.5128,169.62,169.58,0.2896594]
[1717775139523,2.1816,169.6,169.58,0.2896594]
[1717775139834,2.1815,169.61,169.58,0.2896594]
[1717775140539,2.1816,169.6,169.58,0.2896594]
[1717775141142,2.1815,169.61,169.58,0.2896594]
[1717775141918,2.1813,169.62,169.58,0.2896594]
[1717775142417,2.1813,169.62,169.58,6.4396594]
[1717775142920,2.1815,169.61,169.58,6.4396594]
[1717775143118,2.1815,169.61,169.58,0.2896594]
[1717775144746,2.1816,169.6,169.58,0.2896594]
[1717775145037,4.3626,169.62,169.58,0.2896594]
[1717775145038,2.1817,169.59,169.58,0.2896594]
[1717775151741,6.5451,169.59,169.58,0.2896594]
[1717775151943,13.0902,169.59,169.58,0.2896594]
[1717775152841,6.5451,169.59,169.58,0.2896594]
[1717775153142,2.1817,169.59,169.58,0.2896594]
[1717775158345,6.5451,169.59,169.58,0.2896594]
[1717775158748,27.9671,169.59,169.58,0.2896594]
[1717775158956,34.4353,169.59,169.58,0.2896594]
[1717775159257,77.75312334,169.59,169.58,5.94e-05]
[1717775159549,84.63473132,169.59,169.58,5.94e-05]
[1717775159851,78.48473132,169.59,169.58,5.94e-05]
[1717775160051,35.44042334,169.59,169.58,5.94e-05]
[1717775160631,2.1817,169.59,169.58,5.94e-05]
[1717775163469,19.2386,169.62,169.58,5.94e-05]
[1717775163766,17.0562,169.63,169.58,5.94e-05]
[1717775163932,2.1816,169.6,169.58,5.94e-05]
[1717775165059,2.1816,169.6,169.59,6.15]
[1717775165269,2.1816,169.6,169.58,5.94e-05]
[1717775165442,2.1816,169.6,169.58,6.1500594]
[1717775165836,2.1812,169.63,169.59,6.15]
[1717775166155,4.3615,169.67,169.61,6.15]
[1717775166336,2.181,169.65,169.62,6.15]
[1717775166533,15.2646,169.68,169.58,5.94e-05]
[1717775166534,2.1808,169.66,169.63,12.16]
[1717775166833,2.1809,169.65,169.63,12.16]
[1717775167666,2.1809,169.65,169.63,6.01]
[1717775167964,2.181,169.64,169.61,6.15]
[1717775168140,2.181,169.64,169.58,6.4169594]
[1717775168464,2.181,169.64,169.6,12.5669]
[1717775168836,2.1813,169.63,169.6,6.4169]
[1717775169048,10.512,169.65,169.6,6.4169]
[1717775169253,10.5122,169.64,169.58,5.94e-05]
[1717775169448,6.15,169.63,169.58,5.94e-05]
[1717775169665,2.1815,169.61,169.58,5.94e-05]
[1717775170258,2.1815,169.61,169.58,6.1500594]
[1717775170771,2.1815,169.61,169.58,5.94e-05]